[Event "French-ch U16-U18 2024"]
[Site "Agen"]
[Date "2024.04.16"]
[Round "4.11"]
[White "Deladerriere, Calypso"]
[Black "Diez, Agathe"]
[Result "1/2-1/2"]
[ECO "C47"]
[WhiteElo "1935"]
[BlackElo "1954"]
[Annotator "TA"]
[PlyCount "130"]
[EventDate "2024.04.14"]
[EventType "swiss"]
[EventCountry "FRA"]
[SourceTitle "playchess.com"]
[Source "ChessBase"]
[SourceQuality "1"]
[TimeControl "5400+30"]

{[%evp 20,130,47,6,3,0,4,-9,-9,-24,-4,0,22,22,42,16,15,0,8,0,7,0,8,-26,-26,-566,-582,-556,-570,-571,-569,-575,-561,-622,-529,-901,-883,-797,-374,-521,-532,-564,-539,-2674,-2137,-29985,-29986,-29986,-331,-290,-162,-186,-142,-97,-97,-113,-119,-259,-250,-680,-645,-668,-600,-567,-413,-396,-380,-550,-533,-593,-603,-642,-541,-478,0,0,0,-8,0,0,0,0,0,0,0,0,0,0,0,0,0,0,0,0,0,0,0,0,0,0,0,0,0,0,0,0,0,0,0,0,0,0,0]} 1. e4 {[%emt 0:00:05]} e5 {[%emt 0:00:11]} 2. Nf3 {[%emt 0:00:15]} Nc6 {[%emt 0:00:10]} 3. Nc3 {[%emt 0:00:14]} Nf6 {[%emt 0:00:15]} 4. d4 {[%emt 0:00:18]} exd4 {[%emt 0:00:16]} 5. Nxd4 {[%emt 0:00:16]} Bb4 {[%emt 0:00:18]} 6. Nxc6 {[%emt 0:00:27]} bxc6 {[%emt 0:00:16]} 7. Bd3 {[%emt 0:00:20]} O-O {[%emt 0:00:19]} 8. O-O {[%emt 0:00:26]} Re8 {[%emt 0:00:09]} 9. Bg5 {[%emt 0:02:36]} h6 {[%emt 0:00:22]} 10. Bh4 {[%emt 0:01:26]} Rb8 {[%emt 0:00:12] C47: Scotch Four Knights and Four Knights with 4 g3.} 11. Qf3 {[%emt 0:01:36]} Bd6 {[%emt 0:00:21]} 12. Rab1 {[%emt 0:06:55]} Be5 {[%emt 0:00:54]} 13. Rfe1 {[%emt 0:01:08]} d6 {[%emt 0:01:13]} 14. h3 $146 {[%emt 0:00:26]} ({Predecessor:} 14. Qe3 Bxh2+ 15. Kf1 Be5 16. f4 Bxc3 17. bxc3 Rxb1 18. Rxb1 Ng4 19. Qg3 g5 20. f5 h5 21. Be2 Rxe4 22. Bf3 gxh4 23. Qh3 Re3 {0-1 Lombardi,D (804)-Kolanek,R (2070) OP-2012-0-02265}) 14... g5 {[%emt 0:13:44]} 15. Bg3 {[%emt 0:01:01]} Bxg3 {[%emt 0:00:14]} 16. Qxg3 {[%emt 0:01:03]} Nh5 {[%emt 0:00:20]} 17. Qf3 {[%emt 0:03:07]} Nf4 {[%emt 0:00:20]} 18. Bc4 {[%emt 0:04:12]} Be6 {[%emt 0:04:02]} 19. Bxe6 {[%emt 0:02:06]} Rxe6 {[%emt 0:01:30]} 20. b3 {[%emt 0:06:15]} Qe7 {[%emt 0:03:00]} 21. Rbd1 {[%emt 0:02:30]} Re8 {[%emt 0:09:39]} 22. g3 $2 {[%emt 0:08:51][%mdl 8192]} (22. Rf1 $11) 22... Nxh3+ $19 {[%emt 0:18:14]} 23. Kg2 {[%emt 0:03:12]} Rf6 {[%emt 0:00:33]} 24. Qh5 {[%emt 0:01:45]} Rxf2+ {[%emt 0:00:54]} (24... Nxf2 25. Rd2 g4 (25... Qe5 26. Re3 $14) 26. e5 $14 (26. Rxf2 $2 Rxf2+ 27. Kxf2 Qf6+ 28. Qf5 Qxc3 $17)) 25. Kh1 {[%emt 0:07:22]} Qe6 {[%emt 0:02:56]} 26. e5 {[%emt 0:12:41]} Rxc2 {[%emt 0:07:04]} 27. Rc1 {[%emt 0:03:48]} Rxc1 {[%emt 0:05:02]} 28. Rxc1 {[%emt 0:00:07]} d5 {[%emt 0:05:21]} (28... Nf2+ $142 29. Kg1 Qxe5) 29. Kg2 {[%emt 0:07:20]} g4 {[%emt 0:00:33]} 30. Rf1 {[%emt 0:00:32]} Ng5 {[%emt 0:15:47]} (30... Qxe5 31. Qxf7+ Kh8 32. Rf6 $11) 31. Rf6 {[%emt 0:09:18]} Qxe5 {[%emt 0:00:19]} 32. Qxh6 {[%emt 0:00:17]} d4 {[%emt 0:00:37]} 33. Nd1 {[%emt 0:01:28]} Ne4 $2 {[%emt 0:01:57]} (33... Qd5+ {mates} 34. Kf1 d3 35. Nf2 d2 36. Rg6+ fxg6 37. Qxg6+ Kf8 38. Qh6+ Ke7 39. Qg7+ Kd8 (39... Nf7 $2 40. Qa1 $19) 40. Qf6+ Kc8 41. Qa1 Nf3 (41... Re1+ 42. Qxe1 dxe1=B 43. Kxe1 Nf3+ 44. Kf1 Qb5+ 45. Kg2 Qe2 46. b4 Nd2 47. Kh2 Qf1 48. Nxg4 Nf3#) 42. Nxg4 Re1+ (42... d1=R+ 43. Qxd1 Qxd1+ 44. Kg2 Ne1+ 45. Kg1 Qxg4 46. Kh2 Qe2+ 47. Kh3 Rh8#) 43. Kf2 Qd3 (43... Rxa1 44. Ne3 Qe4 45. g4 Nh4 46. Kg3 Rh1 47. g5 Qf3#) 44. Qh8+ Kb7 45. Qa8+ Kxa8 46. Nh6 Qf1#) 34. Rf4 $19 {[%emt 0:01:11]} Qe6 {[%emt 0:04:38]} (34... Qd5 $142 {( -> ...Ng5+)} 35. Rxg4+ Ng5+ 36. Kf1 Qb5+ 37. Kg2 Re2+ 38. Nf2 Rxf2+ (38... Qd5+ 39. Kg1 $11) 39. Kxf2 Qf5+ 40. Rf4 Nh3+ 41. Kf3 Nxf4 42. gxf4 f6) 35. Qh5 {[%emt 0:01:59]} Kf8 {[%emt 0:02:33]} 36. Qh8+ {[%emt 0:05:06]} Ke7 {[%emt 0:00:08]} 37. Qxd4 {[%emt 0:00:07]} Rd8 {[%emt 0:03:36]} 38. Qe3 {[%emt 0:05:46]} (38. Qxe4 $17 Rxd1 39. Qb4+ Qd6 40. Rxg4 (40. Qxd6+ cxd6 41. Rxg4 Rd2+ 42. Kh3 Rxa2 $19)) 38... f5 {[%emt 0:00:40]} 39. Rf1 $2 {[%emt 0:00:32]} (39. Nf2 Rd2 40. Kf1 Rxf2+ (40... Rxa2 41. Nxe4 Qe5 42. Qc5+ Qxc5 43. Nxc5 $16) 41. Rxf2 Nxf2 42. Qxf2) 39... Rd2+ $19 {[%emt 0:00:22]} 40. Kg1 {[%emt 0:00:54]} Qe5 {[%emt 0:00:23]} 41. Re1 {[%emt 0:00:42]} Qd4 {[%emt 0:00:52]} ({Less strong is} 41... Rxa2 42. Nc3 Rb2 43. Nxe4 fxe4 44. Qxe4 Qxe4 45. Rxe4+ Kd6 46. Rxg4 $17) 42. Qxd4 {[%emt 0:01:15]} Rxd4 {[%emt 0:00:04]} 43. Ne3 {[%emt 0:00:05]} (43. Nf2 {is a better defense.}) 43... Kf6 $19 {[%emt 0:00:20]} (43... Nxg3 $2 {too greedy.} 44. Nxf5+ (44. Nxg4+ $2 {loses.} Re4 $19) 44... Kd7 45. Nxd4 $18) 44. Rc1 {[%emt 0:00:42]} c5 {[%emt 0:00:17]} 45. Rc2 {[%emt 0:00:45]} Nxg3 {[%emt 0:01:25]} 46. Rxc5 {[%emt 0:00:07]} f4 $2 {[%emt 0:00:08]} ({Black should try} 46... Rd2 $19 47. Nc4 Rxa2) 47. Nxg4+ $11 {[%emt 0:00:10]} Ke6 {[%emt 0:00:12]} 48. Rxc7 {[%emt 0:00:21]} Rd1+ {[%emt 0:00:30]} 49. Kg2 {[%emt 0:00:23]} Rd2+ {[%emt 0:01:10]} 50. Kf3 {[%emt 0:00:08]} Rxa2 {[%emt 0:00:04]} 51. Kxf4 {[%emt 0:00:16]} Ne2+ {[%emt 0:00:05]} 52. Ke3 {[%emt 0:00:31]} Kd6 {[%emt 0:00:16]} 53. Rb7 {[%emt 0:00:25]} Nc3 {[%emt 0:00:19]} 54. Kd3 {[%emt 0:00:28]} Nd5 {[%emt 0:00:29]} 55. Ne3 {[%emt 0:00:45]} Nxe3 {[%emt 0:00:13]} 56. Kxe3 {[%emt 0:00:03]} Ra3 {[%emt 0:00:18]} 57. Kd4 {[%emt 0:00:34]} Kc6 {[%emt 0:00:10]} 58. Rb8 {[%emt 0:00:20]} Kc7 {[%emt 0:00:12]} 59. Rb5 {[%emt 0:00:08]} Kc6 {[%emt 0:00:05]} 60. Kc4 {[%emt 0:00:46]} a5 {[%emt 0:01:12]} 61. Rb8 {[%emt 0:00:26]} Ra1 {[%emt 0:00:18]} 62. Rc8+ {[%emt 0:00:33]} Kb6 {[%emt 0:00:06]} 63. Rb8+ {[%emt 0:00:09]} Kc7 {[%emt 0:00:36]} 64. Rh8 {[%emt 0:00:18]} a4 {[%emt 0:00:53]} 65. bxa4 {[%emt 0:00:31]} Rxa4+ {[%emt 0:00:06]} 1/2-1/2

[Event "French-ch U16-U18 2024"]
[Site "Agen"]
[Date "2024.04.16"]
[Round "4.13"]
[White "Grimault, Leane"]
[Black "Riss, Selenia"]
[Result "1/2-1/2"]
[ECO "A00"]
[WhiteElo "1930"]
[BlackElo "1763"]
[Annotator "NA RC"]
[PlyCount "52"]
[EventDate "2024.04.14"]
[EventType "swiss"]
[EventCountry "FRA"]
[SourceTitle "playchess.com"]
[Source "ChessBase"]
[SourceQuality "1"]
[TimeControl "5400+30"]

1. g3 {[%emt 0:04:19]} d5 {[%emt 0:05:57]} 2. Bg2 {[%emt 0:00:25]} Nf6 {[%emt 0:00:57]} 3. d3 {[%emt 0:01:13]} e5 {[%emt 0:08:08]} 4. Nd2 {[%emt 0:02:54]} Be6 {[%emt 0:05:28]} 5. Ngf3 {[%emt 0:11:01]} Nbd7 {[%emt 0:02:52]} 6. O-O {[%emt 0:06:59]} Bd6 {[%emt 0:08:12]} 7. c4 {[%emt 0:02:43]} c6 {[%emt 0:01:21]} 8. cxd5 {[%emt 0:08:21]} cxd5 {[%emt 0:02:37]} 9. e4 {[%emt 0:05:18]} d4 {[%emt 0:08:37]} 10. Ng5 {[%emt 0:02:12]} Bg4 {[%emt 0:11:15]} 11. f3 {[%emt 0:00:42]} Bh5 {[%emt 0:00:56]} 12. g4 {[%emt 0:00:51]} Bg6 {[%emt 0:00:15]} 13. Nc4 {[%emt 0:00:08]} Bc7 {[%emt 0:03:51]} 14. f4 {[%emt 0:03:02]} exf4 {[%emt 0:12:19]} 15. e5 {[%emt 0:17:07]} Nxe5 {[%emt 0:04:55]} 16. Re1 {[%emt 0:00:08]} Nfd7 {[%emt 0:00:04]} 17. Bxf4 {[%emt 0:00:33]} O-O {[%emt 0:03:09]} 18. Nxe5 {[%emt 0:08:51]} Bxe5 {[%emt 0:00:13]} 19. Bxe5 {[%emt 0:00:35]} Qxg5 {[%emt 0:00:06]} 20. Bxd4 {[%emt 0:00:27]} Nf6 {[%emt 0:07:17]} 21. h3 {[%emt 0:01:37]} Rad8 {[%emt 0:02:11]} 22. Bxa7 {[%emt 0:07:40]} Rxd3 {[%emt 0:01:21]} 23. Qe2 {[%emt 0:00:24]} h5 {[%emt 0:03:36]} 24. Be3 {[%emt 0:09:35]} Qh4 {[%emt 0:04:15]} 25. Bf2 {[%emt 0:02:16]} Qg5 {[%emt 0:00:03]} 26. Be3 {[%emt 0:01:21]} Qa5 {[%emt 0:03:35]} 1/2-1/2

[Event "French-ch U16-U18 2024"]
[Site "Agen"]
[Date "2024.04.16"]
[Round "4.14"]
[White "Naville, Lea"]
[Black "Milojevic-Daim, Lola-Shaina"]
[Result "0-1"]
[ECO "D14"]
[WhiteElo "1745"]
[BlackElo "1867"]
[Annotator "NA RC"]
[PlyCount "110"]
[EventDate "2024.04.14"]
[EventType "swiss"]
[EventCountry "FRA"]
[SourceTitle "playchess.com"]
[Source "ChessBase"]
[SourceQuality "1"]
[TimeControl "5400+30"]

1. d4 {[%emt 1:31:00]} d5 {[%emt 0:00:20]} 2. c4 {[%emt 0:00:00]} c6 {[%emt 0:00:11]} 3. cxd5 {[%emt 0:00:00]} cxd5 {[%emt 0:00:07]} 4. Bf4 {[%emt 0:00:00]} Nf6 {[%emt 0:00:31]} 5. Nc3 {[%emt 0:00:00]} Nc6 {[%emt 0:00:26]} 6. e3 {[%emt 0:00:00]} Bf5 {[%emt 0:03:26]} 7. Nf3 {[%emt 0:00:00]} e6 {[%emt 0:00:26]} 8. Qb3 {[%emt 0:00:00]} Bb4 {[%emt 0:00:42]} 9. a3 {[%emt 0:00:00]} Bxc3+ {[%emt 0:03:11]} 10. bxc3 {[%emt 0:00:00]} Qa5 {[%emt 0:04:34]} 11. Bb5 {[%emt 0:00:00]} O-O {[%emt 0:07:07]} 12. Bxc6 {[%emt 0:00:00]} bxc6 {[%emt 0:00:20]} 13. O-O {[%emt 0:00:00]} Qb5 {[%emt 0:11:26]} 14. Qxb5 {[%emt 0:00:00]} cxb5 {[%emt 0:00:09]} 15. Nd2 {[%emt 0:00:00]} Rfc8 {[%emt 0:03:18]} 16. Rfc1 {[%emt 0:00:00]} Ne4 {[%emt 0:01:05]} 17. Nxe4 {[%emt 0:00:00]} Bxe4 {[%emt 0:00:13]} 18. Bd6 {[%emt 0:00:00]} Rc6 {[%emt 0:10:35]} 19. Bc5 {[%emt 0:00:00]} g5 {[%emt 0:09:59]} 20. a4 {[%emt 0:00:00]} bxa4 {[%emt 0:06:51]} 21. Rxa4 {[%emt 0:00:00]} a6 {[%emt 0:00:13]} 22. Rca1 {[%emt 0:00:00]} Bd3 {[%emt 0:03:24]} 23. h3 {[%emt 0:00:00]} Kg7 {[%emt 0:05:13]} 24. Kh2 {[%emt 0:00:00]} h5 {[%emt 0:03:05]} 25. Kg3 {[%emt 0:00:00]} h4+ {[%emt 0:03:56]} 26. Kh2 {[%emt 0:00:00]} Kg6 {[%emt 0:01:17]} 27. g3 {[%emt 0:00:00]} hxg3+ {[%emt 0:01:51]} 28. Kxg3 {[%emt 0:00:00]} Rh8 {[%emt 0:00:59]} 29. Rh1 {[%emt 0:00:00]} Rcc8 {[%emt 0:05:11]} 30. Raa1 {[%emt 0:00:00]} Rb8 {[%emt 0:04:03]} 31. Bb4 {[%emt 0:00:00]} Rb5 {[%emt 0:02:46]} 32. Ra3 {[%emt 0:00:00]} Ra8 {[%emt 0:00:21]} 33. Rha1 {[%emt 0:00:00]} Rb7 {[%emt 0:00:40]} 34. Ra5 {[%emt 0:00:22]} Bb5 {[%emt 0:02:31]} 35. Rd1 {[%emt 0:02:31]} Rh8 {[%emt 0:01:46]} 36. Rh1 {[%emt 0:01:03]} f6 {[%emt 0:00:43]} 37. f3 {[%emt 0:02:17]} Rbh7 {[%emt 0:01:27]} 38. Ra2 {[%emt 0:00:23]} f5 {[%emt 0:01:26]} 39. Bd6 {[%emt 0:02:35]} Rh4 {[%emt 0:02:17]} 40. Rah2 {[%emt 0:04:04]} a5 {[%emt 0:00:54]} 41. f4 {[%emt 0:03:44]} g4 {[%emt 0:00:33]} 42. hxg4 {[%emt 0:00:31]} Rxh2 {[%emt 0:00:05]} 43. Rxh2 {[%emt 0:00:03]} Rxh2 {[%emt 0:00:07]} 44. Kxh2 {[%emt 0:00:01]} fxg4 {[%emt 0:00:07]} 45. Kg3 {[%emt 0:00:16]} Kf5 {[%emt 0:00:11]} 46. Bc7 {[%emt 0:02:59]} a4 {[%emt 0:00:07]} 47. Bd6 {[%emt 0:00:05]} Be2 {[%emt 0:01:35]} 48. Kf2 {[%emt 0:01:38]} Bf3 {[%emt 0:00:10]} 49. Ke1 {[%emt 0:00:43]} Ke4 {[%emt 0:00:11]} 50. Kf2 {[%emt 0:00:30]} Kd3 {[%emt 0:00:25]} 51. Bb4 {[%emt 0:00:06]} Kc2 {[%emt 0:01:30]} 52. Kg3 {[%emt 0:00:40]} Kb3 {[%emt 0:00:22]} 53. Kf2 {[%emt 0:00:19]} a3 {[%emt 0:00:09]} 54. Bxa3 {[%emt 0:00:10]} Kxa3 {[%emt 0:00:05]} 55. Ke1 {[%emt 0:00:05]} Kb3 {[%emt 0:00:06]} 0-1

[Event "French-ch U16-U18 2024"]
[Site "Agen"]
[Date "2024.04.16"]
[Round "4.15"]
[White "Dufeux, Elia"]
[Black "Kosteniuk, Kristina"]
[Result "1-0"]
[ECO "E04"]
[WhiteElo "1728"]
[BlackElo "1852"]
[Annotator "NA RC"]
[PlyCount "101"]
[EventDate "2024.04.14"]
[EventType "swiss"]
[EventCountry "FRA"]
[SourceTitle "playchess.com"]
[Source "ChessBase"]
[SourceQuality "1"]
[TimeControl "5400+30"]

1. d4 {[%emt 0:00:04]} Nf6 {[%emt 0:00:20]} 2. Nf3 {[%emt 0:00:20]} e6 {[%emt 0:00:09]} 3. g3 {[%emt 0:01:23]} c5 {[%emt 0:01:59]} 4. Bg2 {[%emt 0:02:25]} d5 {[%emt 0:01:18]} 5. O-O {[%emt 0:02:42]} Nc6 {[%emt 0:01:36]} 6. c4 {[%emt 0:03:48]} dxc4 {[%emt 0:17:33]} 7. dxc5 {[%emt 0:05:34]} Qxd1 {[%emt 0:09:45]} 8. Rxd1 {[%emt 0:00:11]} Bxc5 {[%emt 0:00:06]} 9. Nc3 {[%emt 0:14:16]} O-O {[%emt 0:09:33]} 10. Bf4 {[%emt 0:08:44]} Ng4 {[%emt 0:04:33]} 11. Ne4 {[%emt 0:05:25]} Bb6 {[%emt 0:02:34]} 12. h3 {[%emt 0:07:40]} f5 {[%emt 0:02:19]} 13. hxg4 {[%emt 0:03:36]} fxe4 {[%emt 0:01:29]} 14. Nh2 {[%emt 0:03:54]} e5 {[%emt 0:00:58]} 15. Be3 {[%emt 0:01:29]} Nd4 {[%emt 0:00:33]} 16. Kh1 {[%emt 0:13:40]} Be6 {[%emt 0:08:34]} 17. Bxe4 {[%emt 0:04:03]} Nxe2 {[%emt 0:01:16]} 18. Bxb6 {[%emt 0:01:48]} axb6 {[%emt 0:00:36]} 19. Rf1 {[%emt 0:08:06]} Rad8 {[%emt 0:13:18]} 20. Bxb7 {[%emt 0:06:09]} Rd2 {[%emt 0:01:06]} 21. Rab1 {[%emt 0:01:13]} Nd4 {[%emt 0:03:17]} 22. Kg2 {[%emt 0:01:18]} Nc2 {[%emt 0:06:04]} 23. Kg1 {[%emt 0:00:28]} Nb4 {[%emt 0:00:31]} 24. a3 {[%emt 0:00:48]} Nd3 {[%emt 0:00:09]} 25. Nf3 {[%emt 0:00:53]} Re2 {[%emt 0:00:52]} 26. Ng5 {[%emt 0:01:30]} Bf7 {[%emt 0:09:43]} 27. Nxf7 {[%emt 0:00:30]} Rxf7 {[%emt 0:00:49]} 28. Bd5 {[%emt 0:00:06]} Nxb2 {[%emt 0:00:14]} 29. Bxf7+ {[%emt 0:01:15]} Kxf7 {[%emt 0:00:03]} 30. Rfc1 {[%emt 0:00:06]} b5 {[%emt 0:00:52]} 31. Kf1 {[%emt 0:00:12]} Rd2 {[%emt 0:02:12]} 32. Ke1 {[%emt 0:00:16]} Rd3 {[%emt 0:00:30]} 33. Rxb2 {[%emt 0:00:11]} Rxa3 {[%emt 0:00:06]} 34. Rxb5 {[%emt 0:00:09]} c3 {[%emt 0:00:08]} 35. Rc5 {[%emt 0:00:16]} Ra4 {[%emt 0:00:22]} 36. R1xc3 {[%emt 0:00:30]} Rxg4 {[%emt 0:00:10]} 37. Rxe5 {[%emt 0:00:08]} Ra4 {[%emt 0:00:16]} 38. Rf3+ {[%emt 0:00:10]} Kg6 {[%emt 0:00:09]} 39. Re6+ {[%emt 0:00:32]} Kg5 {[%emt 0:00:14]} 40. Rf7 {[%emt 0:00:28]} g6 {[%emt 0:00:09]} 41. Rxh7 {[%emt 0:00:32]} Ra1+ {[%emt 0:00:23]} 42. Ke2 {[%emt 0:00:17]} Ra2+ {[%emt 0:00:06]} 43. Kf1 {[%emt 0:00:15]} Ra1+ {[%emt 0:00:14]} 44. Kg2 {[%emt 0:00:04]} Ra2 {[%emt 0:00:31]} 45. Rg7 {[%emt 0:00:19]} Kh5 {[%emt 0:00:13]} 46. Rf6 {[%emt 0:01:30]} g5 {[%emt 0:00:46]} 47. Kh3 {[%emt 0:00:30]} g4+ {[%emt 0:00:43]} 48. Rxg4 {[%emt 0:00:28]} Ra1 {[%emt 0:00:51]} 49. Rf5+ {[%emt 0:00:18]} Kh6 {[%emt 0:00:07]} 50. Rb4 {[%emt 0:00:44]} Ra6 {[%emt 0:00:19]} 51. Rfb5 {[%emt 0:00:16]} 1-0

[Event "French-ch U16-U18 2024"]
[Site "Agen"]
[Date "2024.04.16"]
[Round "4.16"]
[White "Lesueur, Gabriel"]
[Black "Makkar, Rajat"]
[Result "1/2-1/2"]
[ECO "C47"]
[WhiteElo "2235"]
[BlackElo "2452"]
[Annotator "TA"]
[PlyCount "46"]
[EventDate "2024.04.14"]
[EventType "swiss"]
[EventCountry "FRA"]
[SourceTitle "playchess.com"]
[Source "ChessBase"]
[SourceQuality "1"]
[TimeControl "5400+30"]

{[%evp 9,46,0,0,-71,-62,-68,-79,-92,-103,-107,-100,-148,-135,-130,-130,-126,-131,-132,-52,-45,-54,-107,-104,-97,-100,-93,126,137,93,41,64,-25,12,11,106,105,93,107,140]} 1. e4 {[%emt 0:00:04]} e5 {[%emt 0:00:19][%cal Be7e5,Be5d4,Bd4c3][%mdl 32]} 2. Nf3 {[%emt 0:00:07]} Nc6 {[%emt 0:00:07]} 3. Nc3 {[%emt 0:01:20]} Nf6 {[%emt 0:00:17]} 4. Nd5 {[%emt 0:01:31]} h6 {[%emt 0:07:01]} 5. d4 {[%emt 0:05:41]} exd4 {[%emt 0:04:07]} 6. Bc4 {[%emt 0:00:33]} (6. Bf4 $11 Nxd5 7. exd5 Bb4+ 8. Bd2 Bxd2+ 9. Qxd2) 6... Bc5 $1 $17 {[%emt 0:04:12]} 7. O-O {[%emt 0:16:47][%cal Ob2b4]} d6 {[%emt 0:03:26]} 8. c3 {[%emt 0:12:25] Black is better.} dxc3 {[%emt 0:04:26]} (8... Nxe4 $2 9. cxd4 Nxd4 10. Nxd4 $18) 9. b4 {[%emt 0:00:27]} Bb6 {[%emt 0:08:14]} (9... Bxb4 10. Nxb4 Nxb4 11. Qb3 $16) 10. Nxb6 {[%emt 0:02:43]} (10. Nxc3 $142 Bg4 (10... Nxb4 11. Qb3 $14) 11. h3 Bxf3 12. Qxf3) 10... axb6 {[%emt 0:00:55]} 11. Qb3 {[%emt 0:09:34]} O-O {[%emt 0:02:59]} (11... Nxe4 12. Bxf7+ Kf8 13. Re1 $11) 12. Re1 {[%emt 0:01:55]} Bg4 {[%emt 0:14:40]} 13. Qxc3 {[%emt 0:00:13]} d5 {[%emt 0:02:46]} (13... Bxf3 $17 14. gxf3 d5) 14. exd5 $15 {[%emt 0:06:04]} Nxd5 {[%emt 0:00:38]} 15. Qb3 {[%emt 0:10:35]} (15. Bxd5 $15 Qxd5 16. Ne5 Nxe5 17. Rxe5) 15... Ndxb4 {[%emt 0:08:46] ...Bxf3 is the strong threat.} (15... Ncxb4 {simplifies} 16. Bb2 c6 17. a3 Bxf3 18. axb4 Rxa1 19. Rxa1 b5) 16. Bb2 {[%emt 0:09:50]} Bxf3 {[%emt 0:03:05]} 17. Qxf3 {[%emt 0:01:28] Black must now prevent Re4.} Qg5 $2 {[%emt 0:05:47] [#]} (17... Nd4 $17 {stays on course.} 18. Bxd4 Qxd4) 18. Re4 $1 $16 {[%emt 0:05:19] aiming for h4.} h5 {[%emt 0:10:02] [#]} 19. Rae1 {[%emt 0:06:51]} (19. a3 $1 $16 {[%cal Oh2h4] And now h4! would win.} b5 20. h4) 19... Qg6 $1 $14 {[%emt 0:03:03][%cal Ob4c2]} 20. Qf4 {[%emt 0:01:49]} ({White should play} 20. Re6 $14 fxe6 21. Rxe6 Rxf3 (21... Qf7 22. Rg6) 22. Rxg6+ Kh7 (22... Kf8 23. Bxg7+ Ke7 24. gxf3 $16) 23. Rxg7+ Kh6 24. gxf3) 20... b5 {[%emt 0:05:06]} 21. Bxb5 {[%emt 0:02:23] A strong pair of Bishops.} Rxa2 {[%emt 0:01:54]} (21... Nd5 $11 22. Qf3 Nf6 (22... Rxa2 23. Qb3 $16) 23. Bxc6 bxc6 24. Bxf6 Qxf6) 22. Rxb4 $16 {[%emt 0:01:05]} Nxb4 {[%emt 0:00:13]} 23. Qxb4 {[%emt 0:00:02]} Raa8 {[%emt 0:09:57] Weighted Error Value: White=0.25 (precise) /Black=0.34.  Mistake:       	White=4     	Black=3      Inaccurate:     	---       	Black=2      OK:         	White=6     	Black=6      Best:        	White=2     	Black=1      Strong:       	White=1     	Black=2} 1/2-1/2